bitfinex/quotes_SOLUSD_20241115
["timestamp","ask_amount","ask_price","bid_price","bid_amount"]
[1731681030673,12.8374,212.7,212.6,20.0]
[1731681031083,12.8374,212.7,212.58,20.0]
[1731681031376,4.2305,212.74,212.61,23.38699348]
[1731681031577,4.2305,212.74,212.63,23.38699348]
[1731681031779,4.2305,212.74,212.64,20.0]
[1731681032008,4.2305,212.74,212.62,23.38699348]
[1731681032009,0.09367462,212.73,212.62,11.758]
[1731681032681,4.2305,212.74,212.62,35.14499348]
[1731681032884,23.902374,212.73,212.62,11.758]
[1731681033090,0.09367462,212.72,212.62,11.758]
[1731681033415,23.776884,212.73,212.62,16.4612]
[1731681033996,23.776884,212.72,212.62,16.4612]
[1731681034285,23.776884,212.72,212.63,20.0]
[1731681035107,13.0385,212.75,212.65,20.0]
[1731681035398,4.2295,212.79,212.66,23.38699348]
[1731681035608,4.2295,212.79,212.65,43.38699348]
[1731681035896,4.2295,212.79,212.65,23.38699348]
[1731681036097,0.09367462,212.78,212.66,39.84509348]
[1731681036503,4.2295,212.79,212.67,43.38699348]
[1731681036709,13.2384,212.82,212.73,20.0]
[1731681037007,30.9993,212.85,212.73,20.0]
[1731681037008,4.2284,212.85,212.73,43.38699348]
[1731681037193,4.2284,212.85,212.74,23.38699348]
[1731681037379,4.2284,212.85,212.75,20.0]
[1731681037580,4.2282,212.86,212.76,23.38699348]
[1731681037811,12.0728,212.87,212.77,23.38699348]
[1731681038178,16.3008,212.87,212.78,16.4488]
[1731681038583,30.9993,212.91,212.78,16.4488]
[1731681038884,4.2276,212.89,212.78,16.4488]
[1731681039798,4.2271,212.91,212.78,16.4488]
[1731681039987,23.902374,212.9,212.79,20.0]
[1731681040383,4.2271,212.91,212.8,23.38699348]
[1731681040906,4.2271,212.91,212.79,43.38699348]
[1731681041283,4.2263,212.95,212.83,43.38699348]
[1731681041616,4.2263,212.95,212.84,23.38699348]
[1731681041790,4.2257,212.98,212.85,16.4434]
[1731681042098,4.2254,213.0,212.88,23.38699348]
[1731681042305,12.4463,213.01,212.9,23.38699348]
[1731681042486,12.4463,213.01,212.89,43.38699348]
[1731681042684,4.6657528,212.99,212.85,29.5062]
[1731681043096,0.09367462,212.98,212.85,16.4434]
[1731681043603,24.12153862,212.98,212.85,16.4434]
[1731681043911,24.12153862,212.96,212.85,11.7453]
[1731681044204,24.12153862,212.96,212.83,4.6985]
[1731681044419,24.12153862,212.96,212.83,16.4449]
[1731681045304,23.776884,212.94,212.84,43.38699348]
[1731681045483,23.776884,212.94,212.84,20.0]
[1731681046183,4.226,212.97,212.85,23.38699348]
[1731681046384,4.226,212.97,212.86,20.0]
[1731681046601,4.226,212.97,212.83,39.83189348]
[1731681046780,0.09367462,212.96,212.83,16.4449]
[1731681047180,0.09367462,212.96,212.82,32.8666]
[1731681047383,0.09367462,212.94,212.83,4.6985]
[1731681047786,24.12153862,212.94,212.82,11.7467]
[1731681048085,24.12153862,212.92,212.77,42.106]
[1731681048505,24.12153862,212.92,212.77,70.19279348]
[1731681048896,24.12153862,212.92,212.77,16.4493]
[1731681049302,24.12153862,212.92,212.78,20.0]
[1731681049612,23.99604862,212.9,212.79,4.6994]
[1731681049910,0.21916462,212.88,212.77,16.4492]
[1731681050911,0.21916462,212.88,212.77,16.4494]
[1731681051113,0.21916462,212.86,212.69,23.38699348]
[1731681051415,0.21916462,212.86,212.71,16.4539]
[1731681051596,4.2283,212.85,212.71,16.4539]
[1731681051799,23.902374,212.84,212.71,39.84089348]
[1731681052001,23.902374,212.84,212.71,16.4539]
[1731681052212,23.902374,212.84,212.71,39.84089348]
[1731681052721,23.902374,212.84,212.72,20.0]
[1731681052924,23.776884,212.82,212.74,20.0]
[1731681053093,0.21916462,212.81,212.71,4.7012]
[1731681053617,0.21916462,212.81,212.71,11.753]
[1731681054301,0.21916462,212.81,212.71,16.4542]
[1731681054701,0.21916462,212.81,212.71,11.753]
[1731681054921,23.776884,212.79,212.71,11.753]
[1731681055623,0.12549,212.78,212.71,11.753]
[1731681055814,0.12549,212.78,212.66,23.5117]
[1731681055815,0.09367462,212.77,212.67,4.7019]
[1731681056125,0.12549,212.76,212.66,16.4578]
[1731681056622,0.12549,212.78,212.66,16.4578]
[1731681056800,23.776884,212.76,212.66,16.4578]
[1731681056999,0.12549,212.75,212.66,16.4578]
[1731681057210,0.21916462,212.74,212.61,11.7581]
[1731681057394,0.12549,212.71,212.61,16.4615]
[1731681057603,12.3421,212.7,212.61,11.7581]
[1731681057803,0.21916462,212.68,212.56,11.7609]
[1731681058199,0.21916462,212.64,212.56,11.7609]
[1731681058402,0.12549,212.64,212.56,11.7609]
[1731681058613,0.12549,212.64,212.54,4.7048]
[1731681058806,4.45206462,212.62,212.51,11.7638]
[1731681058997,23.776884,212.61,212.51,11.7638]
[1731681059915,23.776884,212.61,212.51,35.15079348]
[1731681060404,0.12549,212.62,212.51,11.7638]
[1731681060603,0.09367462,212.59,212.44,23.38699348]
[1731681060826,0.12549,212.58,212.47,11.7663]
[1731681061124,23.776884,212.56,212.47,11.7663]
[1731681061921,28.010984,212.56,212.48,20.0]
[1731681062730,0.25098,212.67,212.5,20.0]
[1731681062913,0.09367462,212.66,212.47,35.15329348]
[1731681063116,0.09367462,212.66,212.51,20.0]
[1731681063629,35.9694,212.68,212.54,20.0]
[1731681063630,14.8109,212.68,212.54,20.0]
[1731681063838,4.2317,212.68,212.51,20.0]
[1731681064004,4.2317,212.68,212.56,35.14829348]
[1731681064206,42.361,212.7,212.57,43.38699348]
[1731681064424,46.5924,212.7,212.57,43.38699348]
[1731681064830,16.5735,212.7,212.57,23.38699348]
[1731681065035,12.3421,212.7,212.6,20.0]
[1731681065207,44.0541,212.76,212.65,23.38699348]
[1731681065403,17.285,212.76,212.64,20.0]
[1731681065610,0.09367462,212.75,212.63,43.38699348]
[1731681065911,0.09367462,212.75,212.62,23.38699348]
[1731681066113,4.2305,212.74,212.64,4.7027]
[1731681066317,0.09367462,212.73,212.58,24.7041]
[1731681066515,0.09367462,212.71,212.58,24.7041]
[1731681066714,0.12549,212.7,212.58,24.7041]
[1731681067121,0.21916462,212.69,212.58,4.7041]
[1731681067433,0.09367462,212.65,212.52,4.7054]
[1731681067728,0.09367462,212.63,212.53,11.7626]
[1731681068311,23.776884,212.61,212.53,11.7626]
[1731681068817,23.776884,212.62,212.53,11.7626]
[1731681069023,23.776884,212.62,212.54,20.0]
[1731681069221,4.35799,212.64,212.53,11.7626]
[1731681069222,0.12549,212.66,212.56,20.0]
[1731681069420,23.902374,212.66,212.56,20.0]
[1731681070010,23.902374,212.66,212.54,43.38699348]
[1731681070310,4.32557462,212.67,212.55,16.4666]
[1731681070516,23.776884,212.66,212.56,43.38699348]
[1731681070731,13.179,212.69,212.57,23.38699348]
[1731681071035,13.179,212.69,212.61,20.0]
[1731681071208,12.9727,212.74,212.62,43.38699348]
[1731681071408,12.9727,212.74,212.66,23.38699348]
[1731681071605,12.7178,212.81,212.67,43.38699348]
[1731681071822,0.09367462,212.8,212.67,20.0]
[1731681072016,12.7178,212.81,212.67,43.38699348]
[1731681072227,12.7178,212.81,212.69,23.38699348]
[1731681072426,4.2293,212.8,212.7,36.455]
[1731681073236,12.7178,212.81,212.72,23.38699348]
[1731681073407,12.7178,212.81,212.73,20.0]
[1731681073834,4.229,212.82,212.73,43.38699348]
[1731681074138,4.2281,212.86,212.75,43.38699348]
[1731681074427,0.09367462,212.85,212.76,4.7001]
[1731681074629,12.6783,212.87,212.76,4.7001]
[1731681074833,12.6783,212.87,212.77,57.88568263]
[1731681075320,16.9063,212.87,212.77,20.0]
[1731681075504,16.9063,212.87,212.77,57.88568263]
[1731681075709,16.9063,212.87,212.77,20.0]
[1731681075933,0.09367462,212.86,212.76,16.4504]
[1731681076233,23.99604862,212.86,212.76,16.4504]
[1731681076825,23.902374,212.84,212.75,20.0]
[1731681077229,23.902374,212.84,212.74,37.88568263]
[1731681077438,0.12549,212.85,212.76,20.0]
[1731681077931,4.2278,212.88,212.78,37.88568263]
[1731681078128,4.2278,212.88,212.79,57.88568263]
[1731681078332,4.2278,212.88,212.79,20.0]
[1731681078706,0.09367462,212.89,212.8,4.6992]
[1731681079418,23.99604862,212.89,212.8,4.6992]
[1731681079837,23.776884,212.87,212.8,4.6992]
[1731681080332,23.776884,212.87,212.79,36.4476]
[1731681080505,23.776884,212.87,212.72,32.1599]
[1731681080506,0.21916462,212.86,212.72,32.1599]
[1731681080706,0.21916462,212.86,212.71,12.7789]
[1731681080707,0.21916462,212.86,212.74,11.7512]
[1731681080938,0.09367462,212.84,212.74,11.7512]
[1731681081424,23.776884,212.87,212.78,37.88568263]
[1731681081736,4.227,212.92,212.83,42.58418263]
[1731681081915,4.227,212.92,212.83,4.6985]
[1731681082116,4.227,212.92,212.83,16.4449]
[1731681082332,12.3364,212.93,212.83,16.4449]
[1731681083422,16.5632,212.93,212.83,16.4449]
[1731681083619,23.902374,212.92,212.82,37.88568263]
[1731681083940,23.902374,212.92,212.83,20.0]
[1731681085036,23.902374,212.92,212.84,4.6983]
[1731681085232,23.902374,212.92,212.84,16.4442]
[1731681085529,28.129274,212.92,212.84,16.4442]
[1731681086040,0.09367462,212.91,212.79,11.7483]
[1731681086243,0.09367462,212.87,212.73,37.88568263]
[1731681086543,0.12549,212.86,212.75,4.79387462]
[1731681086746,23.902374,212.86,212.75,37.97935725]
[1731681087039,0.21916462,212.85,212.75,0.09367462]
[1731681087227,0.25098,212.84,212.75,0.09367462]
[1731681087428,23.776884,212.85,212.76,37.88568263]
[1731681087940,23.776884,212.86,212.75,0.09367462]
[1731681088148,0.12549,212.85,212.75,0.09367462]
[1731681088454,4.2272,212.91,212.8,37.88568263]
[1731681088623,23.776884,212.92,212.82,37.88568263]
[1731681088830,28.003884,212.92,212.83,36.4449]
[1731681089331,23.776884,212.92,212.83,74.33058263]
[1731681089646,28.003884,212.92,212.83,36.4449]
[1731681090225,0.12549,212.91,212.83,36.4449]
[1731681090822,23.776884,212.9,212.83,16.4449]
[1731681091961,23.776884,212.9,212.8,37.88568263]
[1731681092246,23.776884,212.9,212.81,20.0]
[1731681092727,12.3364,212.93,212.82,37.88568263]
[1731681092934,12.3364,212.93,212.84,20.0]
[1731681093136,16.5631,212.93,212.83,20.0]
[1731681093629,16.5631,212.93,212.82,20.0]
[1731681094053,23.776884,212.92,212.81,20.0]
[1731681094227,28.003784,212.92,212.83,11.7464]
[1731681094645,23.776884,212.92,212.83,11.7464]
[1731681095254,23.776884,212.92,212.84,20.0]
[1731681095764,4.226,212.97,212.88,23.30543049]
[1731681095927,4.6658528,212.99,212.88,23.30543049]
[1731681096125,0.4401528,212.99,212.9,20.0]
[1731681096346,4.6656528,212.99,212.9,20.0]
[1731681096936,0.4401528,212.99,212.9,20.0]
[1731681097135,0.4401528,212.99,212.9,43.30543049]
[1731681097350,0.4401528,212.99,212.9,20.0]
[1731681098252,0.4401528,212.99,212.91,16.4388]
[1731681098457,0.4401528,212.99,212.94,20.0]
[1731681098631,0.4401528,212.99,212.97,23.30543049]
[1731681099058,0.4401528,212.99,212.98,23.30543049]
[1731681099556,0.4401528,212.99,212.98,20.0]
[1731681099756,0.4401528,212.99,212.98,43.30543049]
[1731681100355,0.4401528,212.99,212.98,48.12612049]
[1731681101258,0.4401528,212.99,212.98,20.0]
[1731681101462,0.4401528,212.99,212.94,4.696]
[1731681101633,0.4401528,212.99,212.93,11.7409]
[1731681101958,0.4401528,212.99,212.93,16.4372]
[1731681102149,0.4401528,212.99,212.93,39.74263049]
[1731681102356,0.4401528,212.99,212.93,16.4372]
[1731681103053,23.776884,212.98,212.87,23.30543049]
[1731681103248,23.776884,212.98,212.87,11.7439]
[1731681104147,23.776884,212.95,212.87,11.7439]
[1731681104352,24.12153862,212.92,212.82,11.7465]
[1731681104657,24.12153862,212.92,212.77,16.4491]
[1731681105156,24.12153862,212.92,212.79,23.30543049]
[1731681105362,23.99604862,212.92,212.81,23.30543049]
[1731681106151,4.2271,212.91,212.79,23.30543049]
[1731681106359,23.902374,212.9,212.79,23.30543049]
[1731681106556,23.902374,212.9,212.78,23.30543049]
[1731681106757,23.902374,212.9,212.77,16.4491]
[1731681106969,0.21916462,212.88,212.77,16.4491]
[1731681107262,24.12153862,212.86,212.75,0.09367462]
[1731681108160,0.21916462,212.84,212.75,0.09367462]
[1731681108362,24.12153862,212.84,212.75,0.09367462]
[1731681109072,4.2287,212.83,212.75,0.09367462]
[1731681109254,24.12153862,212.82,212.75,0.09367462]
[1731681110467,0.09367462,212.8,212.75,0.09367462]
[1731681110654,24.12153862,212.8,212.75,0.09367462]
[1731681112364,4.2295,212.79,212.75,0.09367462]
[1731681112674,23.902374,212.78,212.75,0.09367462]
[1731681113039,23.776884,212.78,212.75,0.09367462]
[1731681113276,4.2291,212.81,212.75,0.09367462]
[1731681113563,4.2287,212.83,212.75,4.79387462]
[1731681113757,4.2287,212.83,212.75,0.09367462]
[1731681113963,0.09367462,212.82,212.75,0.09367462]
[1731681114463,0.09367462,212.8,212.75,0.09367462]
[1731681114969,0.12549,212.79,212.75,0.09367462]
[1731681115354,0.25098,212.79,212.75,0.09367462]
[1731681115862,0.09367462,212.78,212.75,0.09367462]
[1731681116053,0.12549,212.77,212.75,0.09367462]
[1731681116258,4.2285,212.84,212.75,0.09367462]
[1731681116563,0.09367462,212.83,212.75,0.09367462]
[1731681116960,4.2285,212.84,212.75,0.09367462]
[1731681117156,4.2285,212.84,212.75,4.79387462]
[1731681117358,4.2285,212.84,212.76,37.89058096]
[1731681117561,12.1892,212.85,212.75,54.43525558]
[1731681117870,12.1892,212.85,212.77,37.89058096]
[1731681118071,12.1892,212.85,212.76,37.89058096]
[1731681118257,43.011,212.9,212.78,37.89058096]
[1731681118456,12.9846,212.9,212.8,4.6992]
[1731681118644,0.09367462,212.89,212.8,4.6992]
[1731681119049,0.09367462,212.89,212.8,11.7481]
[1731681119244,0.09367462,212.89,212.75,0.09367462]
[1731681119677,24.12153862,212.89,212.75,0.09367462]
[1731681119857,24.12153862,212.89,212.77,37.89058096]
[1731681120057,24.12153862,212.89,212.75,74.43525558]
[1731681120371,0.09367462,212.87,212.75,16.54467462]
[1731681120571,23.99604862,212.87,212.76,37.89058096]
[1731681120868,23.902374,212.87,212.78,37.89058096]
[1731681121072,23.902374,212.87,212.75,16.54467462]
[1731681121374,0.34465462,212.86,212.75,0.09367462]
[1731681121670,0.34465462,212.86,212.75,4.79387462]
[1731681122873,0.34465462,212.86,212.75,16.54467462]
[1731681122874,23.99604862,212.84,212.75,16.54467462]
[1731681123075,23.99604862,212.84,212.75,11.84447462]
[1731681123258,23.902374,212.84,212.75,54.43535558]
[1731681123453,23.902374,212.84,212.75,16.54477462]
[1731681123764,0.09367462,212.81,212.75,0.09367462]
[1731681123949,0.21916462,212.79,212.75,0.09367462]
[1731681124274,0.12549,212.78,212.75,0.09367462]
[1731681124572,0.12549,212.83,212.75,0.09367462]
[1731681124755,0.12549,212.83,212.75,4.79377462]
[1731681124958,23.776884,212.82,212.75,4.79377462]
[1731681125156,23.776884,212.82,212.75,0.09367462]
[1731681125374,0.09367462,212.79,212.75,0.09367462]
[1731681126672,12.6874,212.78,212.75,0.09367462]
[1731681126996,28.35163862,212.76,212.75,0.09367462]
[1731681128980,4.2279,212.87,212.75,23.35506687]
[1731681129186,13.3097,212.88,212.68,0.1]
[1731681129477,13.3097,212.88,212.8,23.35506687]
[1731681129677,0.09367462,212.87,212.8,23.35506687]
[1731681130172,17.5375,212.88,212.8,23.35506687]
[1731681130379,0.09367462,212.87,212.63,7.32143649]
[1731681130550,0.09367462,212.87,212.69,20.0]
[1731681130749,28.2068,212.88,212.66,31.8982]
[1731681130750,0.09367462,212.83,212.66,31.8982]
[1731681130960,0.09367462,212.79,212.63,54.39416297]
[1731681131173,24.12153862,212.79,212.63,54.39416297]
[1731681131455,24.12153862,212.79,212.65,37.93366297]
[1731681131873,24.12153862,212.79,212.66,37.93366297]
[1731681132062,24.12153862,212.79,212.7,37.93366297]
[1731681132370,24.12153862,212.77,212.63,16.4605]
[1731681132555,24.12153862,212.77,212.63,49.69116297]
[1731681132766,24.12153862,212.77,212.65,37.93366297]
[1731681133170,24.027864,212.77,212.7,37.93366297]
[1731681133465,24.027864,212.77,212.64,16.4596]
[1731681133466,12.5214,212.78,212.72,37.93366297]
[1731681133670,0.09367462,212.77,212.71,37.93366297]
[1731681133858,0.21916462,212.77,212.68,20.0]
[1731681134168,0.21916462,212.77,212.64,16.4596]
[1731681134367,0.21916462,212.77,212.65,37.93366297]
[1731681134878,0.09367462,212.75,212.66,37.93366297]
[1731681135177,0.09367462,212.73,212.67,4.7021]
[1731681135352,0.09367462,212.73,212.69,37.93366297]
[1731681135549,16.7512,212.78,212.69,37.93366297]
[1731681135753,23.776884,212.77,212.69,37.93366297]
[1731681135965,0.09367462,212.76,212.67,16.4574]
[1731681136166,0.09367462,212.76,212.67,11.7553]
[1731681136875,0.12549,212.75,212.67,11.7553]
[1731681137571,0.25098,212.77,212.7,37.93366297]
[1731681137771,0.09367462,212.76,212.69,37.93366297]
[1731681137975,23.776884,212.77,212.71,37.93366297]
[1731681138273,0.09367462,212.76,212.72,37.93366297]
[1731681138480,0.09367462,212.76,212.71,37.93366297]
[1731681138689,0.09367462,212.76,212.68,37.93366297]
[1731681138975,4.2293,212.81,212.74,37.93366297]
[1731681139169,13.1302,212.83,212.77,37.93366297]
[1731681139481,13.1302,212.83,212.77,42.63346297]
[1731681139885,4.2282,212.86,212.79,37.93366297]
[1731681140181,16.8904,212.88,212.81,37.93366297]
[1731681140569,16.8904,212.88,212.83,37.93366297]
[1731681140570,12.6626,212.88,212.83,37.93366297]
[1731681141366,0.09367462,212.91,212.84,37.93366297]
[1731681141564,12.2018,212.92,212.86,37.93366297]
[1731681141766,12.2018,212.92,212.83,16.4447]
[1731681141961,0.09367462,212.91,212.83,16.4447]
[1731681142585,12.2018,212.92,212.84,37.93366297]
[1731681142770,23.902374,212.91,212.84,37.93366297]
[1731681143371,0.09367462,212.9,212.84,37.93366297]
[1731681143764,0.09367462,212.9,212.83,11.7464]
[1731681143973,0.12549,212.88,212.78,11.749]
[1731681144180,0.21916462,212.87,212.78,11.749]
[1731681144378,0.12549,212.86,212.78,16.4486]
[1731681145063,0.09367462,212.85,212.75,4.7002]
[1731681145885,0.09367462,212.83,212.75,54.38466297]
[1731681146770,0.12549,212.84,212.77,37.93366297]
[1731681147088,0.12549,212.84,212.75,16.451]
[1731681147089,0.12549,212.87,212.8,37.93366297]
[1731681147268,0.12549,212.87,212.75,16.451]
[1731681147269,0.12549,212.87,212.81,37.93366297]
[1731681147467,0.09367462,212.86,212.83,37.93366297]
[1731681147692,4.2268,212.93,212.85,37.93366297]
[1731681148371,0.09367462,212.91,212.8,37.93366297]
[1731681148700,0.09367462,212.91,212.82,37.93366297]
[1731681148986,0.09367462,212.91,212.81,37.93366297]
[1731681149293,12.2018,212.92,212.82,37.93366297]
[1731681149516,12.2018,212.92,212.78,0.12549]
[1731681149517,0.21916462,212.91,212.79,37.93366297]
[1731681149794,0.21916462,212.91,212.78,57.93366297]
[1731681150380,0.09367462,212.89,212.78,20.0]
[1731681150593,0.09367462,212.89,212.77,39.9491]
[1731681150893,0.09367462,212.89,212.77,16.4496]
[1731681151295,26.9961,212.92,212.73,61.43676297]
[1731681151296,24.12153862,212.87,212.75,20.0]
[1731681151466,24.12153862,212.87,212.76,37.93366297]
[1731681151672,24.12153862,212.87,212.77,20.0]
[1731681151977,24.12153862,212.87,212.74,20.0]
[1731681152977,23.902374,212.84,212.73,11.7519]
[1731681153170,23.99604862,212.79,212.69,4.7015]
[1731681153480,24.12153862,212.79,212.69,4.7015]
[1731681153683,24.027864,212.83,212.72,37.93366297]
[1731681153985,24.027864,212.83,212.7,37.93366297]
[1731681154188,0.09367462,212.82,212.69,42.63516297]
[1731681154502,0.09367462,212.82,212.7,37.93366297]
[1731681154877,0.09367462,212.82,212.74,37.93366297]
[1731681155094,23.902374,212.84,212.78,37.93366297]
[1731681155302,30.7245,212.93,212.8,37.93366297]
[1731681155492,30.7245,212.93,212.83,37.93366297]
[1731681155993,30.7245,212.93,212.85,37.93366297]
[1731681156179,0.09367462,212.92,212.85,37.93366297]
[1731681156384,16.6837,212.94,212.86,37.93366297]
[1731681156692,0.09367462,212.93,212.82,37.93366297]
[1731681156886,0.09367462,212.93,212.81,20.0]
[1731681157088,16.6837,212.94,212.82,37.93366297]
[1731681157391,16.6837,212.94,212.81,20.0]
[1731681157392,16.6837,212.94,212.84,37.93366297]
[1731681157595,16.6837,212.94,212.86,37.93366297]
[1731681157770,0.09367462,212.93,212.87,37.93366297]
[1731681158098,0.09367462,212.93,212.85,20.0]
[1731681158272,12.4572,212.94,212.85,57.93366297]
[1731681158667,0.09367462,212.93,212.75,4.7003]
[1731681158876,0.09367462,212.93,212.76,37.93366297]
[1731681159080,0.09367462,212.93,212.75,42.63396297]
[1731681159297,0.09367462,212.93,212.77,37.93366297]
[1731681159472,0.09367462,212.93,212.75,4.7003]
[1731681159473,0.09367462,212.93,212.76,37.93366297]
[1731681159780,24.12153862,212.93,212.75,4.7003]
[1731681159974,24.12153862,212.91,212.75,54.38476297]
[1731681160176,24.12153862,212.91,212.77,37.93366297]
[1731681160803,24.12153862,212.91,212.76,37.93366297]
[1731681161298,0.09367462,212.87,212.77,16.4496]
[1731681161499,0.09367462,212.85,212.77,16.4496]
[1731681161702,0.21916462,212.85,212.77,16.4496]
[1731681161900,0.12549,212.84,212.77,16.4496]
[1731681162085,0.21916462,212.84,212.77,16.4496]
[1731681162280,0.12549,212.84,212.77,16.4496]
[1731681162506,0.12549,212.84,212.78,20.0]
[1731681163201,0.21916462,212.85,212.77,11.7497]
[1731681163401,0.12549,212.82,212.77,11.7497]
[1731681163607,0.12549,212.82,212.67,31.3517]
[1731681163608,0.09367462,212.79,212.68,4.7018]
[1731681163900,0.12549,212.74,212.68,16.4565]
[1731681164406,0.12549,212.74,212.63,37.93366297]
[1731681164589,0.09367462,212.75,212.62,45.24453513]
[1731681164901,0.21916462,212.75,212.62,45.24453513]
[1731681165108,0.21916462,212.75,212.63,20.0]
[1731681165708,0.12549,212.76,212.65,37.93366297]
[1731681166000,23.776884,212.82,212.67,20.0]
[1731681166001,0.12549,212.78,212.67,20.0]
[1731681166704,0.12549,212.78,212.64,0.09367462]
[1731681166705,0.12549,212.78,212.69,20.0]
[1731681167081,0.12549,212.78,212.68,20.0]
[1731681167491,0.12549,212.78,212.68,37.93366297]
[1731681167703,0.12549,212.78,212.69,20.0]
[1731681168003,0.09367462,212.75,212.63,4.703]
[1731681168204,0.09367462,212.75,212.65,11.7558]
[1731681169003,4.2297,212.78,212.66,37.93366297]
[1731681169004,0.25098,212.78,212.66,37.93366297]
[1731681169210,0.09367462,212.77,212.66,20.0]
[1731681169702,0.12549,212.78,212.67,37.93366297]
[1731681169917,0.12549,212.78,212.68,20.0]
[1731681170503,4.35529,212.78,212.68,20.0]
[1731681170687,0.12549,212.76,212.67,11.7553]
[1731681170997,0.09367462,212.75,212.67,11.7553]
[1731681171397,0.09367462,212.75,212.67,16.4574]
[1731681171608,0.12549,212.74,212.67,11.7553]
[1731681171798,0.12549,212.74,212.61,31.3517]
[1731681171996,4.35619,212.74,212.63,20.0]
[1731681172391,0.12549,212.74,212.63,57.93366297]
[1731681172589,0.12549,212.74,212.63,20.0]
[1731681172807,0.21916462,212.75,212.65,20.0]
[1731681172989,4.44946462,212.75,212.65,20.0]
[1731681173607,4.44946462,212.75,212.64,20.0]
[1731681174199,4.44946462,212.75,212.65,16.4589]
[1731681174404,4.44946462,212.75,212.66,20.0]
[1731681175209,0.12549,212.76,212.66,20.0]
[1731681175587,0.12549,212.74,212.66,20.0]
[1731681176181,4.35609,212.74,212.66,24.7021]
[1731681176398,4.35609,212.74,212.66,4.7021]
[1731681176610,4.35609,212.74,212.67,20.0]
[1731681178506,0.21916462,212.68,212.48,4.7063]
[1731681178805,0.34465462,212.68,212.52,11.7632]
[1731681179543,23.99604862,212.66,212.52,11.7632]
[1731681179712,24.12153862,212.64,212.52,11.7632]
[1731681179898,0.25098,212.64,212.52,11.7632]
[1731681180208,0.12549,212.66,212.56,20.0]
[1731681180407,0.12549,212.66,212.55,20.0]
[1731681180612,0.21916462,212.66,212.55,20.0]
[1731681180911,0.21916462,212.66,212.53,20.0]
[1731681181115,0.12549,212.64,212.52,11.7632]
[1731681181710,0.12549,212.64,212.53,37.97237248]
[1731681182019,0.12549,212.64,212.52,11.7632]
[1731681182020,0.09367462,212.63,212.52,49.73557248]
[1731681182304,0.12549,212.64,212.52,11.7632]
[1731681182506,0.09367462,212.63,212.53,20.0]
[1731681182711,0.09367462,212.63,212.52,11.7632]
[1731681183094,0.09367462,212.61,212.52,11.7632]
[1731681183811,0.12549,212.6,212.52,11.7632]
[1731681184313,0.12549,212.58,212.52,11.7632]
[1731681185111,0.12549,212.58,212.48,4.7063]
[1731681185311,0.09367462,212.57,212.48,4.7063]
[1731681185609,0.09367462,212.53,212.48,11.7658]
[1731681185817,0.12549,212.52,212.43,11.7683]
[1731681186112,0.09367462,212.51,212.43,11.7683]
[1731681187507,0.12549,212.48,212.4,4.708]
[1731681187714,0.12549,212.48,212.4,16.4782]
[1731681188699,0.12549,212.46,212.35,11.7728]
[1731681188899,4.32997462,212.45,212.35,11.7728]
[1731681189203,0.12549,212.44,212.35,11.7728]
[1731681189410,12.9049,212.49,212.39,37.97237248]
[1731681189593,0.12549,212.48,212.4,37.97237248]
[1731681189910,0.12549,212.48,212.38,37.97237248]
[1731681190112,0.21916462,212.47,212.35,49.74517248]
[1731681190291,0.12549,212.46,212.36,20.0]
[1731681190496,0.09367462,212.45,212.36,20.0]
[1731681190718,0.21916462,212.45,212.35,11.7728]
[1731681190926,4.36229,212.42,212.35,11.7728]
[1731681191796,0.21916462,212.41,212.35,11.7728]
[1731681192007,0.12549,212.4,212.35,11.7728]
[1731681192815,0.09367462,212.39,212.31,24.71]
[1731681193324,12.9636,212.38,212.31,4.71]
[1731681193501,0.21916462,212.37,212.31,4.71]
[1731681193705,0.21916462,212.37,212.26,16.4892]
[1731681194104,0.21916462,212.35,212.26,16.4892]
[1731681194305,12.9636,212.38,212.26,16.4892]
[1731681194546,0.12549,212.37,212.28,37.97237248]
[1731681194713,0.12549,212.37,212.29,20.0]
[1731681195021,0.12549,212.37,212.28,37.97237248]
[1731681195228,0.12549,212.37,212.29,20.0]